Cogmind - Beta 14 @@@ ROGUE MODE // 2024.08.18 @ 20:10:22 Player: THN-L0C Result: Core destroyed Performance ------------- Evolutions (2) 1000 Regions Visited (8) 1600 Robots Destroyed (79) 395 Value Destroyed (2566) 2566 Prototype IDs (24) 480 Alien Tech Used (0) 0 Bonus (1926) 1926 TOTAL SCORE: 7967 Bonus ------- Follower Combat Kills 1746 Aligned with FarCom 300 Friendly Fire -120 Cogmind --------- Core Integrity 0/550 Matter 24/300 Energy 1/100 System Corruption 3% Temperature Cool (18) Movement Rolling (115) Ox1 Location -8/Scraptown Parts ------- > --- POWER (1) -------- (None) > --- PROPULSION (3) --- Armored Huge Wheel > --- UTILITY (4) ------ Large Storage Unit Layered Light Armor Plating > --- WEAPON (3) ------- Siege Cannon > --- INVENTORY (15) --- Overtuned Pulse Rifle Remote Datajack Plasma Cutter Peak State ------------ > --- POWER ------------ Light Angular Momentum Engine > --- PROPULSION ------- Tri-treads > --- UTILITY ---------- Scrap Suit Large Storage Unit Layered Light Armor Plating > --- WEAPON ----------- Flak Cannon Flak Cannon Rocket Launcher > --- INVENTORY -------- Light Nuclear Core Light Nuclear Core Tri-treads Armored Huge Wheel High-capacity Matter Pod Makeshift Light Armor Plating Layered Light Armor Plating Remote Datajack Field Lobotomy Kit Plasma Cutter CPS Tube Great Maul [Rating: 50] Favorites ----------- Power Light Nuclear Core Engine Improved Ion Engine Power Core Light Nuclear Core Propulsion Light Treads Treads Light Treads Wheel Armored Huge Wheel Utility Large Storage Unit Device Scrap Suit Storage Large Storage Unit Processor Corruption Screen Protection Hardened Heavy Armor Plating Weapon Shotgun Energy Gun Overtuned Pulse Rifle Ballistic Gun Shotgun Ballistic Cannon Flak Cannon Launcher Rocket Launcher Special Weapon Field Lobotomy Kit Impact Weapon Great Maul Build | -11 -10 -10 -10 -9 -8 -8 -8 -8 ------- Run | Yrd Mat Min Exi Min Mat Sto Rec Scr Slots Evolved 4 | . . . . . 4 . . . Power . | . . . . . . . . . Propulsion 1 | . . . . . 1 . . . Utility 2 | . . . . . 2 . . . Weapon 1 | . . . . . 1 . . . Parts Attached 78 | 7 15 1 1 1 14 6 . 33 Power 10 | 1 2 . . . 2 1 . 4 Engine 6 | 1 2 . . . 1 . . 2 Core 4 | . . . . . 1 1 . 2 Reactor . | . . . . . . . . . Propulsion 11 | 2 1 . . . 4 . . 4 Treads 9 | 2 1 . . . 3 . . 3 Leg . | . . . . . . . . . Wheel 2 | . . . . . 1 . . 1 Hover . | . . . . . . . . . Flight . | . . . . . . . . . Utility 24 | 2 7 . 1 1 2 1 . 10 Device 10 | 1 3 . . . 1 . . 5 Storage 2 | 1 1 . . . . . . . Processor 1 | . . . . . . 1 . . Hackware . | . . . . . . . . . Protection 11 | . 3 . 1 1 1 . . 5 Artifact . | . . . . . . . . . Weapon 33 | 2 5 1 . . 6 4 . 15 Energy Gun 1 | . . . . . . . . 1 Energy Cannon . | . . . . . . . . . Ballistic Gun 6 | 2 2 . . . 2 . . . Ballistic Cannon 6 | . 1 . . . . 1 . 4 Launcher 7 | . 1 1 . . 1 1 . 3 Special Weapon 9 | . 1 . . . . 1 . 7 Impact Weapon 4 | . . . . . 3 1 . . Slashing Weapon . | . . . . . . . . . Piercing Weapon . | . . . . . . . . . Special Melee Weapon . | . . . . . . . . . Unidentified Prototypes . | . . . . . . . . . Parts Lost 15 | . . . . . 2 . . 13 Power 2 | . . . . . . . . 2 Propulsion 2 | . . . . . . . . 2 Utility 5 | . . . . . 1 . . 4 Weapon 6 | . . . . . 1 . . 5 Highest Loss Streak 7 | . . . . . 2 . . 7 To Critical Strikes . | . . . . . . . . . Average Slot Usage (%) 85 | . 100 100 100 100 87 81 81 76 Engine 6 | . 14 14 14 14 6 3 . 3 Core 3 | . . . . . 2 5 9 5 Treads 16 | . 28 28 28 28 22 9 9 8 Wheel 3 | . . . . . 2 9 9 4 Device 6 | . 11 14 12 . 8 . . 5 Storage 10 | . 14 14 14 14 9 9 9 9 Processor 2 | . . . . . . 9 9 3 Protection 7 | . 2 . 1 14 9 9 9 9 Ballistic Gun 10 | . 19 14 14 14 18 9 9 2 Ballistic Cannon 8 | . 7 . . . . 9 9 14 Launcher 4 | . . 14 14 14 1 . . 5 Impact Weapon 3 | . . . . . 6 7 9 2 Peak Build Rating 50 | 7 12 12 13 13 36 40 40 50 Average Rating 31 | 5 8 12 12 13 27 39 40 44 On Entrance 18 | . 7 12 12 13 13 32 40 40 Naked Turns . | . . . . . . . . . Heaviest Build 65 | 12 35 35 37 37 60 62 58 65 Greatest Support 60 | 40 40 40 40 40 60 28 28 52 Greatest Overweight (x) 2 | . . . . . 2 2 2 2 Average Overweight (x) . | . . . . . . 2 2 1 Largest Inventory Capacity 15 | 8 15 15 15 15 15 15 15 15 Average Capacity 14 | 7 10 15 15 15 15 15 15 15 Most Carried 15 | 1 15 15 15 15 15 15 15 15 Average Carried 13 | . 6 15 14 15 14 14 15 14 Final Capacity 15 | 8 15 15 15 15 15 15 15 15 Final Carried 15 | 1 15 15 15 15 15 15 15 3 Class Distribution -------------------- 56% | Mutant 26% | Tank 8% | Commander-Mutant 4% | Skirmisher Dominant Class ---------------- Mutant | -10/Materials Mutant | -10/Mines Mutant | -10/Exiles Mutant | -9/Mines Mutant | -8/Materials Commander-Mutant | -8/Storage Commander-Mutant | -8/Recycling Tank | -8/Scraptown Resources | -11 -10 -10 -10 -9 -8 -8 -8 -8 ----------- Run | Yrd Mat Min Exi Min Mat Sto Rec Scr Matter Collected 3526 | 184 450 138 140 50 395 146 6 2017 Remotely . | . . . . . . . . . Salvage Created 2555 | 23 576 . . 24 451 . 81 1400 Parts 145 | 3 27 . . 8 35 . . 72 Haulers Intercepted . | . . . . . . . . . Recyclers Shooed 3 | . . . . . 2 1 . . Parts Field Recycled . | . . . . . . . . . Retrieved Matter . | . . . . . . . . . Parts Self-Destructed . | . . . . . . . . . Prevented . | . . . . . . . . . Kills | -11 -10 -10 -10 -9 -8 -8 -8 -8 ------- Run | Yrd Mat Min Exi Min Mat Sto Rec Scr Combat Hostiles Destroyed 68 | . 11 . . 7 16 . . 34 Guns 15 | . 3 . . . 12 . . . Cannons 28 | . 8 . . . . . . 20 AOE 25 | . . . . 7 4 . . 14 Classes Destroyed 17 | 1 4 . . 1 2 . . 9 Worker 5 | . 3 . . . 2 . . . Tunneler 2 | 1 . . . . 1 . . . Recycler 3 | . 2 . . . . . 1 . Watcher 1 | . 1 . . . . . . . Swarmer 13 | . . . . 7 6 . . . Grunt 17 | . 11 . . . 6 . . . Sentry 2 | . . . . . 2 . . . Hunter 2 | . . . . . 2 . . . Bolteater 3 | . . . . . . . . 3 Federalist 3 | . . . . . . . . 3 Explorer 5 | . . . . . . . . 5 Ranger 3 | . . . . . . . . 3 Guru 2 | . . . . . . . . 2 Scientist 3 | . . . . . . . . 3 Scrapper 13 | . . . . . . . . 13 Elite 5 | . . . . . . . . 5 Tinkerer 5 | . . . . . . . . 5 Best Kill Streak 5 | 1 4 . . 4 5 . 1 5 Combat Bots Only 5 | . 4 . . 4 4 . . 5 Max Kills in Single Turn 3 | 1 1 . . 3 3 . 1 2 Gunslinging . | . . . . . . . . . Exploded 3 | . . . . 3 2 . . 1 Melee . | . . . . . . . . . Uniques/NPCs Destroyed . | . . . . . . . . . Combat | -11 -10 -10 -10 -9 -8 -8 -8 -8 -------- Run | Yrd Mat Min Exi Min Mat Sto Rec Scr Hostile Shots Fired 473 | . 36 . . 11 95 . . 331 Missed 123 | . 10 . . 4 25 . . 84 Damage Taken 4728 | . 286 . . 60 1015 12 1 3354 Core 633 | . 43 . . 15 . . . 575 Absorbed by Shields 64 | . . . . . . . . 64 Regen/Repaired (Parts) 16 | . . . . . . . . 16 Core Remaining (%) 88 | 100 . . . 76 . . . . Volleys Fired 198 | 7 41 . . 5 34 3 1 107 Largest 3 | 2 2 . . 1 3 2 1 3 Hottest 157 | 40 100 . . 33 69 67 44 157 Shots Fired 407 | 14 71 . . 5 71 5 1 240 Gun 129 | 14 37 . . . 66 3 . 9 Cannon 193 | . 30 . . . . 2 1 160 Launcher 74 | . . . . 5 5 . . 64 Special 11 | . 4 . . . . . . 7 Kinetic 313 | 14 67 . . . 66 5 1 160 Thermal 13 | . 4 . . . . . . 9 Explosive 74 | . . . . 5 5 . . 64 Electromagnetic . | . . . . . . . . . Robot Hit Streak 14 | 7 14 . . 2 11 5 2 5 Robot Miss Streak 17 | 2 3 . . 1 3 2 2 17 Penetration Max 1 | . . . . . . . . 1 Secondary Targets . | . . . . . . . . . Shots Hit Robots 258 | 8 50 . . 1 50 5 2 142 Core Hits 238 | 2 27 . . 7 43 2 3 154 Critical Kills 1 | . 1 . . . . . . . Critical Parts Destroyed . | . . . . . . . . . Critical Strikes 4 | . 1 . . . . . . 3 Destroy 1 | . 1 . . . . . . . Blast 3 | . . . . . . . . 3 Melee Attacks 8 | . . . . . 5 2 1 . Impact 8 | . . . . . 5 2 1 . Slashing . | . . . . . . . . . Piercing . | . . . . . . . . . Sneak Attacks 3 | . . . . . 1 1 1 . Combat Hostiles . | . . . . . . . . . Follow-up Attacks . | . . . . . . . . . Damage Inflicted 7434 | 95 772 . . 298 1411 202 123 4533 Guns 1201 | 92 381 . . . 687 18 . 23 Cannons 3067 | . 391 . . . . 54 19 2603 Explosions 2820 | . . . . 298 615 . . 1907 Melee 315 | . . . . . 109 105 101 . Ramming 31 | 3 . . . . . 25 3 . Kinetic 4245 | 92 772 . . . 687 72 19 2603 Thermal 23 | . . . . . . . . 23 Explosive 2820 | . . . . 298 615 . . 1907 Electromagnetic . | . . . . . . . . . Impact 315 | . . . . . 109 105 101 . Slashing . | . . . . . . . . . Piercing . | . . . . . . . . . Highest Corruption 3 | . . . . . . . . 3 Average Corruption 1 | . . . . . . . . 1 Corruption Purged . | . . . . . . . . . Corruption Blocked . | . . . . . . . . . Effects 13 | . . . . . . . . 13 Message Errors 5 | . . . . . . . . 5 Matter Fused 4 | . . . . . . . . 4 Heat Flow Errors 1 | . . . . . . . . 1 Data Loss (minor) 1 | . . . . . . . . 1 Data Loss (major) 1 | . . . . . . . . 1 Misfires 1 | . . . . . . . . 1 Overload Shots . | . . . . . . . . . Overflow Damage 457 | . . . . 26 111 . 71 249 Projectiles 154 | . . . . . . . . 154 Explosions 143 | . . . . 26 22 . . 95 Melee 160 | . . . . . 89 . 71 . Knockbacks 32 | . 5 . . . . . 1 26 Impact 1 | . . . . . . . 1 . Kinetic 29 | . 4 . . . . . . 25 Secondary 2 | . 1 . . . . . . 1 Self-Inflicted Damage 138 | . . . . . . 12 1 125 Shots 4 | . . . . . . . . 4 Rammed 6 | 1 . . . . . 3 2 . Targets Rammed 6 | 1 . . . . . 3 2 . Kicked . | . . . . . . . . . Crushed . | . . . . . . . . . Highest Temperature 437 | . 78 . . . 129 42 16 437 Average Temperature 95 | . 23 . . . 38 23 8 118 Received Heat Transfer 1006 | . 141 . . . 396 . . 469 Effects 2 | . . . . . . . . 2 Interference 2 | . . . . . . . . 2 Siege Activations . | . . . . . . . . . Robots Corrupted 1 | . . . . . . . 1 . Combat Hostiles . | . . . . . . . . . Parts Fried 4 | . . . . . 3 . 1 . Impact Corruptions 4 | . . . . . 1 . 3 . Robots Melted . | . . . . . . . . . Combat Hostiles . | . . . . . . . . . Parts Melted 3 | . . . . . . . . 3 Heat Transferred 37 | . . . . . . . . 37 Parts Sabotaged . | . . . . . . . . . Parts Stolen . | . . . . . . . . . Parts Stripped . | . . . . . . . . . Power Chain Reactions . | . . . . . . . . . Alert | -11 -10 -10 -10 -9 -8 -8 -8 -8 ------- Run | Yrd Mat Min Exi Min Mat Sto Rec Scr Peak Influence 615 | 5 271 15 . 224 385 615 276 . Initial 239 | . 3 15 . . 87 157 239 . Average 103 | 1 80 15 . 105 79 364 127 . Maximum Alert Level 2 | . 1 . . 1 1 2 1 . Low Security (%) 80 | 100 90 100 . 72 92 19 63 . Level 1 16 | . 9 . . 27 7 36 36 . Level 2 2 | . . . . . . 43 . . Level 3 . | . . . . . . . . . Level 4 . | . . . . . . . . . Level 5 . | . . . . . . . . . High Security . | . . . . . . . . . Max Security . | . . . . . . . . . Squads Dispatched 8 | . 2 . . . 4 2 . . Investigation 3 | . 1 . . . 1 1 . . Extermination . | . . . . . . . . . Reinforcement 4 | . 1 . . . 3 . . . Assault . | . . . . . . . . . Garrison 1 | . . . . . . 1 . . Intercept . | . . . . . . . . . Searches Triggered . | . . . . . . . . . Construction Impeded 1 | . . . . . 1 . . . Haulers Reinforced . | . . . . . . . . . Active Scanning Responses . | . . . . . . . . . Cargo Convoy Interrupts . | . . . . . . . . . Stealth | -11 -10 -10 -10 -9 -8 -8 -8 -8 --------- Run | Yrd Mat Min Exi Min Mat Sto Rec Scr Distress Signals 8 | . 2 . . . 4 2 . . Communications Jammed . | . . . . . . . . . Distress Signals . | . . . . . . . . . Times Spotted 131 | . 19 . . 6 34 9 2 61 Peak Tracking Total 8 | . 6 . . 4 8 3 1 6 Tactical Retreats 4 | . 3 . . . 1 . . . Traps | -11 -10 -10 -10 -9 -8 -8 -8 -8 ------- Run | Yrd Mat Min Exi Min Mat Sto Rec Scr Traps Triggered 1 | . 1 . . . . . . . Indirectly . | . . . . . . . . . Trap Hack Attempts . | . . . . . . . . . Triggered . | . . . . . . . . . Disarmed . | . . . . . . . . . Reprogrammed . | . . . . . . . . . Reused . | . . . . . . . . . Traps Extracted . | . . . . . . . . . Installed . | . . . . . . . . . Triggered . | . . . . . . . . . Machines | -11 -10 -10 -10 -9 -8 -8 -8 -8 ---------- Run | Yrd Mat Min Exi Min Mat Sto Rec Scr Machines Disabled 29 | . . . . 2 . 1 . 26 Max in Single Turn 2 | . . . . 2 . 1 . 2 Machines Repaired . | . . . . . . . . . Machines Dismantled 1 | . . . . . . . . 1 Machines Sabotaged . | . . . . . . . . . Overloaded Fab Kills . | . . . . . . . . . Hacking | -11 -10 -10 -10 -9 -8 -8 -8 -8 --------- Run | Yrd Mat Min Exi Min Mat Sto Rec Scr Machines Accessed 28 | . 7 1 1 . 6 4 9 . Terminals 24 | . 7 1 . . 6 4 6 . Fabricators . | . . . . . . . . . Repair Stations . | . . . . . . . . . Recycling Units 3 | . . . . . . . 3 . Scanalyzers . | . . . . . . . . . Garrison Access . | . . . . . . . . . Total Hacks 89 | . 26 3 1 . 17 13 29 . Successful 47 | . 13 2 1 . 8 7 16 . Failed 42 | . 13 1 . . 9 6 13 . Catastrophic 4 | . 2 . . . 2 . . . Database Lockouts . | . . . . . . . . . Manual 57 | . 22 . 1 . 10 6 18 . Terminals 85 | . 26 3 . . 17 13 26 . Fabricators . | . . . . . . . . . Repair Stations . | . . . . . . . . . Recycling Units 3 | . . . . . . . 3 . Scanalyzers . | . . . . . . . . . Garrison Access . | . . . . . . . . . Terminal Hacks 24 | . 7 2 1 . 2 5 7 . Record 1 | . . . . . . . 1 . Part Schematic 1 | . . . . . . . 1 . Robot Analysis 5 | . 4 . . . . 1 . . Open Door 2 | . . . . . . 2 . . Branch Access Points 1 | . . . . . 1 . . . Terminal Index 4 | . 1 . . . 1 1 1 . Alert Level 2 | . 1 . . . . . 1 . Unreport Threat 1 | . 1 . . . . . . . Maintenance Status 1 | . . . . . . . 1 . Patrol Status 1 | . . 1 . . . . . . Zone Layout 4 | . . 1 . . . 1 2 . Derelict Proto ID Bank 1 | . . . 1 . . . . . Fabricator Hacks . | . . . . . . . . . Repair Station Hacks . | . . . . . . . . . Recycling Unit Hacks 3 | . . . . . . . 3 . Report Inventory 3 | . . . . . . . 3 . Scanalyzer . | . . . . . . . . . Garrison Access Hacks . | . . . . . . . . . Unauthorized Hacks 20 | . 6 . . . 6 2 6 . Terminals 20 | . 6 . . . 6 2 6 . Botnet 20 | . 6 . . . 6 2 6 . Fabricators . | . . . . . . . . . Repair Stations . | . . . . . . . . . Recycling Units . | . . . . . . . . . Scanalyzers . | . . . . . . . . . Garrison Access . | . . . . . . . . . Data Cores Recovered . | . . . . . . . . . Used . | . . . . . . . . . Hacking Detections 25 | . 7 1 . . 5 4 8 . Full Trace Events 8 | . 1 . . . 1 . 6 . Feedback Events . | . . . . . . . . . Feedback Blocked . | . . . . . . . . . Robot Schematics Acquired . | . . . . . . . . . Robots Built . | . . . . . . . . . Authchips . | . . . . . . . . . Time . | . . . . . . . . . Total Robot Build Rating . | . . . . . . . . . Part Schematics Acquired 1 | . . . . . . . 1 . Parts Built . | . . . . . . . . . Authchips . | . . . . . . . . . Time . | . . . . . . . . . Total Part Build Rating . | . . . . . . . . . Parts Repaired . | . . . . . . . . . Time . | . . . . . . . . . Parts Recycled . | . . . . . . . . . Recycled Matter . | . . . . . . . . . Retrieved Matter . | . . . . . . . . . Retrieved Components . | . . . . . . . . . Parts Scanalyzed . | . . . . . . . . . Part Schematics Acquired . | . . . . . . . . . Parts Damaged . | . . . . . . . . . Bothacking | -11 -10 -10 -10 -9 -8 -8 -8 -8 ------------ Run | Yrd Mat Min Exi Min Mat Sto Rec Scr Used RIF Installer . | . . . . . . . . . Robots Hacked 1 | . . . . . . . . 1 Non-combat . | . . . . . . . . . Combat 1 | . . . . . . . . 1 Robot Hacks Applied 1 | . . . . . . . . 1 parse_system 1 | . . . . . . . . 1 Relay Couplers Released . | . . . . . . . . . Fabnet Peak Effective % . | . . . . . . . . . Robots Rewired . | . . . . . . . . . Allies Hacked . | . . . . . . . . . Hacks Repelled . | . . . . . . . . . Allies | -11 -10 -10 -10 -9 -8 -8 -8 -8 -------- Run | Yrd Mat Min Exi Min Mat Sto Rec Scr Total Allies 15 | . . . . . . 10 . 5 Largest Group 10 | . . . . . . 10 4 4 Highest-Rated Group 252 | . . . . . . 173 77 252 Highest-Rated Ally 191 | . . . . . . 29 29 191 Total Orders 1 | . . . . . . 1 . . FOLLOW 1 | . . . . . . 1 . . Ally Attacks 259 | . . . . . . 113 16 130 Total Damage 7939 | . . . . . . 1234 212 6493 Kills 57 | . . . . . . 14 3 40 Allies Corrupted . | . . . . . . . . . Allies Melted 1 | . . . . . . 1 . . Field Lobotomies 5 | . . . . . . . . 5 Intel | -11 -10 -10 -10 -9 -8 -8 -8 -8 ------- Run | Yrd Mat Min Exi Min Mat Sto Rec Scr Robot Analysis Total 5 | . 4 . . . . 1 . . Derelict Logs Recovered 2 | . . 1 . 1 . . . . Drone Launches . | . . . . . . . . . Drone Recoveries . | . . . . . . . . . Exploration | -11 -10 -10 -10 -9 -8 -8 -8 -8 ------------- Run | Yrd Mat Min Exi Min Mat Sto Rec Scr Turns Passed 10583 | 102 1426 325 665 380 1915 351 1099 4320 Spaces Moved 5575 | 46 617 187 414 229 691 166 828 2397 Core 4 | 4 . . . . . . . . Treads 2800 | 42 617 187 414 229 468 1 . 842 Legs . | . . . . . . . . . Wheels 2771 | . . . . . 223 165 828 1555 Hover . | . . . . . . . . . Flight . | . . . . . . . . . Fastest Speed 50 | 50 160 160 160 160 115 130 130 57 Average Speed 149 | 150 160 160 160 160 150 131 130 152 Slowest Speed 320 | 160 160 160 160 160 320 305 130 230 Overloaded Moves . | . . . . . . . . . Propulsion Burnouts . | . . . . . . . . . Robots Hopped . | . . . . . . . . . Cave-ins Triggered . | . . . . . . . . . Exploration Rate (%) 56 | 4 75 46 81 56 58 31 98 61 Regions Visited 8 Branch Regions 6 Pre-discovered Areas 1 | . . . . 1 . . . . Known Exits Taken 1 | . . . . . 1 . . . Unknown Exits Taken 7 | 1 1 1 1 1 . 1 1 . Scrap Searched 3 | . . 1 . 1 . . . 1 Spaces Dug 19 | . 4 . . . 15 . . . Terrain Destroyed 389 | . 4 . . 45 45 . . 295 Melee 4 | . . . . . 4 . . . Projectile 33 | . 4 . . . . . . 29 AOE 352 | . . . . 45 41 . . 266 Terrain Rammed . | . . . . . . . . . Walls Destroyed . | . . . . . . . . . Machines Disabled . | . . . . . . . . . Actions | -11 -10 -10 -10 -9 -8 -8 -8 -8 --------- Run | Yrd Mat Min Exi Min Mat Sto Rec Scr Total 7342 | 62 975 212 418 239 1503 288 847 2798 Wait 1356 | 1 280 25 . . 728 104 16 202 Move 5568 | 46 616 186 413 228 690 165 827 2397 Hop . | . . . . . . . . . Pick Up 43 | 1 16 . 2 2 13 3 . 6 Fast Attach 16 | 7 . . . . 2 . . 7 Attach 19 | . . . 1 . 4 2 . 12 Detach 5 | . . . . . 1 . . 4 Swap 43 | . 15 1 . 1 8 4 . 14 Drop 43 | . 7 . 2 3 18 2 . 11 Fire 198 | 7 41 . . 5 34 3 1 107 Melee 8 | . . . . . 5 2 1 . Ram 5 | . . . . . . 3 2 . Kick . | . . . . . . . . . Crush . | . . . . . . . . . Escape Stasis . | . . . . . . . . . Rewire . | . . . . . . . . . Trap . | . . . . . . . . . Miscellaneous 38 | . . . . . . . . 38 Route ------- -11/Scrapyard -10/Materials (discovered 3 exits: [*Mat x2] / *Min) -10/Mines (discovered 2 exits: [*Mat] / *Exi) -10/Exiles (discovered 2 exits: [*Min x2]) -9/Mines -8/Materials (discovered 3 exits: [*Fac] / *Sto x2) -8/Storage -8/Recycling (discovered 2 exits: [*Fac] / *Scr) -8/Scraptown (discovered 1 exit: [*Fac]) History --------- Turn | Location | Event 5 | -11/Scrapyard | Discovered new exit (range 16) 103 | -11/Scrapyard | Entered Materials 315 | -10/Materials | Build established: Mutant 745 | -10/Materials | Discovered new exit (range 16) 1024 | -10/Materials | Discovered new exit (range 8) 1260 | -10/Materials | Discovered new exit (range 13) 1529 | -10/Materials | Entered Mines 1778 | -10/Mines | Discovered new exit (range 12) 1836 | -10/Mines | Learned 2 Materials zone layouts 1846 | -10/Mines | Deemed a non-threat by the Exiles lab entrance 1847 | -10/Mines | Discovered new exit (range 5) 1854 | -10/Mines | Entered Exiles 1875 | -10/Exiles | Discovered new exit (range 15) 1894 | -10/Exiles | Met 8R-AWN 1922 | -10/Exiles | Met EX-HEX 1987 | -10/Exiles | Met EX-BIN 2006 | -10/Exiles | Aligned with FarCom system 2008 | -10/Exiles | Given EX-Vault access code 2058 | -10/Exiles | Opened EX-Vault 2068 | -10/Exiles | Found Field Lobotomy Kit 2102 | -10/Exiles | Warned to stay clear of 0b10 Research branches 2157 | -10/Exiles | Met EX-DEC 2255 | -10/Exiles | Visited The Gauntlet 2500 | -10/Exiles | Discovered new exit (range 12) 2519 | -10/Exiles | Left Exiles lab with Field Lobotomy Kit 2519 | -10/Exiles | Entered Mines 2861 | -9/Mines | Discovered new exit (range 10) 2899 | -9/Mines | Entered Materials 2899 | -8/Materials | Evolved 4 slots: Propulsion x1, Utility x2, Weapon x1 3994 | -8/Materials | Discovered new exit (range 16) 4337 | -8/Materials | Discovered new exit (range 16) 4727 | -8/Materials | Identified exit to Storage 4814 | -8/Materials | Entered Storage 4845 | -8/Storage | Assisted by bots powering up and referring to "LRC-V3" 5073 | -8/Storage | Garrison activated, responded to threat 5122 | -8/Storage | Used back door to open Recycling access 5122 | -8/Storage | Discovered new exit (range 4) 5136 | -8/Storage | Build established: Commander-Mutant 5165 | -8/Storage | Entered Recycling 5165 | -8/Recycling | Accompanied by 4 allies 5166 | -8/Recycling | Met a Zionite searching for Scraptown 5955 | -8/Recycling | Discovered new exit (range 16) 6048 | -8/Recycling | Build established: Mutant 6223 | -8/Recycling | Scanned before Scraplab entrance 6243 | -8/Recycling | Entered Scraplab 6253 | -8/Recycling | Discovered new exit (range 3) 6264 | -8/Recycling | Entered Scraptown 6264 | -8/Scraptown | Accompanied by 3 allies 6703 | -8/Scraptown | Visited Symbiants 6747 | -8/Scraptown | Visited Shadow of the Wyrm 6801 | -8/Scraptown | Visited Scrapoid Research Area 6855 | -8/Scraptown | Visited Supply Room 6921 | -8/Scraptown | Discovered new exit (range 13) 7080 | -8/Scraptown | Visited Spacefarers 7159 | -8/Scraptown | Visited Fellowship of the Rings 7265 | -8/Scraptown | Turned away by UFD registrar 7585 | -8/Scraptown | Assimilated Triborg with FLK Orb 7586 | -8/Scraptown | Attacked by Scraptown defenders 7628 | -8/Scraptown | Assimilated WU-ML3(E) with FLK Orb 7661 | -8/Scraptown | Lost 4 allies 7756 | -8/Scraptown | Assimilated WM-DJB(j) with FLK Orb 7777 | -8/Scraptown | Assimilated K8-TGC(j) with FLK Orb 7908 | -8/Scraptown | Build established: Tank 8122 | -8/Scraptown | Found Scrap Suit 8453 | -8/Scraptown | Found Tri-treads 8708 | -8/Scraptown | Found Scrap Suit 9353 | -8/Scraptown | Found Tri-treads 10472 | -8/Scraptown | Core integrity fell below 50% 10473 | -8/Scraptown | Assimilated RK-16P(E) with FLK Orb 10481 | -8/Scraptown | Found Siege Cannon 10499 | -8/Scraptown | Lost 7 parts (1p1n1u4w) 10547 | -8/Scraptown | Core integrity fell below 20% 10584 | -8/Scraptown | Core destroyed Last Messages --------------- 10554_ Siege Slug penetrates 2X-3B6(h). 10554_ Siege Slug penetrates Machine. 10554_ Machine disabled. 10556_ Bolt penetrates Machine. 10556_ Siege Slug penetrates Machine. 10558_ Penetrated by Bolt. 10558_ Siege Slug penetrates Machine. 10558_ Machine disabled. 10561_ Bolt penetrates Machine. 10563_ Acquired Lyr. Light Armor Plating. 10564_ Penetrated by Bolt. 10571_ Acquired 6 matter. 10572_ Acquired 35 matter. 10576_ Acquired 8 matter. 10578_ Bolt penetrates Earth. 10582_ Siege Cannon recoils violently, damaging core (-6). 10582_ Violent recoil rips off Rocket Booster. 10582_ Siege Slug penetrates Wall. 10582_ Machine disabled. 10584_ Penetrated by Bolt. Map ----- +----------------------------------------------------+ | | | | | | | | | | | | | | | | | | | | | | | | | ?????????????????????????????????????????????????? | | ????#########?????????????????#######????????????? | | ????#"""""""#?????????????????? ##???????????? | | ??###" "#??????????????????< ??########### | | ??? """ "#????########??????? #??"""""""""#" | | ????#" """ "#???#"""""""#???????# #?#" "#" | | ????#" """ "#???#"" ""#???????# #?#" | | ????#" "#???#"" ""#???????# #?#" "#" | | ??###" " """###?#""" ""#?####### #?#" """ "#" | | ### #?#"" ""### # #;; "#" | | """ ###"" "" # ##"""""" ""#" | | """ | | """ [ = =! | | [* @ =h*= | | #####= ;#### # ## ;;########"" | | " #####" ##### # " ####??????#" | | "" #"""" %=""""#### # #########?#" | | ## = = #" %" ### """"""""#?#" | | ?# # !""#" " * " "### ### " ""#?#" | | ?## " %"#" "%"% "#"" """ "#?#""" | | ?# # = "" "#"""""=" ""#" " ! ""#?#### | | ?# * #" "###### ######" " """""""#????? | | ?# = [ "#""""" """""#" *##"""####????? | | ?# ! ""#" " " "#" "" "#####???????? | | ?### ! ## ###" " " "#" % "????????????? | | ?# ## # " " "#""""" ==##???????????? | | ?# # # #####""""" """""#####"# "??##########? | | ?## # ##???###### ######???## % "#?#" !"""!!#? | | ?### ########## ########### %#?#"[!" !!!#? | | ?# % %!#?#|"!!!!""#? | | ?## & %* ! #?#"/ ""#? | | ??# ############"########### [%*### % #? | | ?## # #????????# #???????# ! " !## | | ## # # #####????# #???????# # #####""!""" | | """ " """"#???##"######### !!*!!=! | | "" "#???? ###""""" # ! *!%!!%! | | "" ]!/ "## " " # " " #!%=% !!!!!=! | | !!! "## "" " # !!! | +----------------------------------------------------+ Best States ------------- Heat Dissipation 31 Energy Generation 18 Energy Capacity 275 Matter Stores 300 Matter Capacity 300 Sight Range 16 Terrain Scan Density 10 Corruption Block 8 Armor Coverage 600 Resistance: EM 15 Evasion (%) 48 Recoil Reduction 3 Item Schematics ----------------- Melee Analysis Suite | -8/Recycling | Hacked Robot Schematics ------------------ None Fabricated ------------ Nothing Alien Tech Used ----------------- None Achievements -------------- None Challenges ------------ None Game ------ Seed TiamatBombBox Manual? 0 Play Time 01:29:55 Cumulative 70.9 hours Start 2024.08.18 @ 18:39:54 End 2024.08.18 @ 20:10:22 Sessions 1 Manual Loads 0 Difficulty Rogue Special Mode None Game No. 68 Rogue 68 Adventurer 0 Explorer 0 Win Type - Total 0 Types 0/0/0/0/0/0/0/0/0 Lore% 45 Gallery% 48 Achievement% 39 Wizard Run 0 Options --------- Layout 2 ASCII 0 Keyboard 1 Movement Vi Keybinds 0 Fullscreen 1 Font 32/SmallcapsGlow Map View 77x44 Zoom Use 0% Tactical HUD 1 Map Filters NONE Filters NONE Steam 1 RUN: 43c66166-9c3b-4b57-92e4-0e56d11d98e4